bitfinex/quotes_ETHUSD_20251028
["timestamp","ask_amount","ask_price","bid_price","bid_amount"]
[1761654741382,2.43430446,4106.6,4106.5,0.1216]
[1761654743367,2.43521636,4106.5,4106.2,0.1216]
[1761654743599,2.43522705,4106.4,4106.2,0.1216]
[1761654744012,2.43514864,4106.6,4106.3,0.1216]
[1761654744310,2.43520693,4106.5,4106.3,0.1216]
[1761654745111,0.0869,4106.9,4106.3,0.1216]
[1761654745696,2.43522306,4106.4,4106.3,0.1216]
[1761654746998,0.0869,4106.9,4106.3,0.1216]
[1761654748614,0.0879,4106.9,4106.3,0.1216]
[1761654749622,2.43522306,4106.4,4106.3,0.1216]
[1761654749806,2.43528237,4106.3,4106.1,0.002]
[1761654749981,2.43534167,4106.2,4106.1,0.002]
[1761654751015,3.99054167,4106.2,4106.1,0.002]
[1761654751515,3.96710635,4106.2,4106.1,0.002]
[1761654760219,4.06458138,4106.2,4106.1,0.002]
[1761654765768,4.46928538,4106.2,4106.1,0.002]
[1761654766521,4.59098864,4106.2,4106.1,0.002]
[1761654767415,4.46928538,4106.2,4106.1,0.002]
[1761654767919,4.47028538,4106.2,4106.1,0.002]
[1761654769257,4.59050065,4106.2,4106.1,0.002]
[1761654769733,4.47028538,4106.2,4106.1,0.002]
[1761654774964,4.56928538,4106.2,4106.1,0.002]
[1761654776070,4.16378138,4106.2,4106.1,0.002]
[1761654776450,4.06478138,4106.2,4106.1,0.002]
[1761654778970,4.16378138,4106.2,4106.1,0.002]
[1761654779876,8.43673692,4106.2,4106.1,0.002]
[1761654780189,4.06478138,4106.2,4106.1,0.002]
[1761654780585,3.96730635,4106.2,4106.1,0.6535]
[1761654782790,3.96730635,4106.2,4106.1,0.002]
[1761654782959,4.06630635,4106.2,4106.1,0.002]
[1761654783157,3.96730635,4106.2,4106.1,0.002]
[1761654784390,3.95730635,4106.2,4106.1,0.002]
[1761654784594,8.23026189,4106.2,4106.1,0.4369]
[1761654785309,8.23026189,4106.2,4106.1,0.6569]
[1761654787276,8.23026189,4106.2,4106.1,0.002]
[1761654790191,8.32846189,4106.2,4106.1,0.002]
[1761654797391,8.22946189,4106.2,4106.1,0.002]
[1761654797812,8.32846189,4106.2,4106.1,0.002]
[1761654800215,8.22946189,4106.2,4106.1,0.002]
[1761654800622,3.95650635,4106.2,4106.1,0.002]
[1761654809381,3.95650635,4106.2,4106.1,0.4473]
[1761654809946,3.95650635,4106.2,4106.1,0.002]
[1761654814796,3.95570635,4106.2,4106.1,0.002]
[1761654815410,4.05470635,4106.2,4106.1,0.002]
[1761654816126,3.95570635,4106.2,4106.1,0.002]
[1761654818818,4.05470635,4106.2,4106.1,0.002]
[1761654819337,4.05470635,4106.2,4105.3,0.1236]
[1761654819338,2.43560013,4105.8,4105.3,0.002]
[1761654819628,2.43560013,4105.8,4105.2,1e-08]
[1761654819629,2.43587557,4105.3,4105.2,1e-08]
[1761654819989,2.74447557,4105.3,4105.2,1e-08]
[1761654820319,2.84198362,4105.3,4105.2,1e-08]
[1761654822112,2.53338362,4105.3,4105.2,1e-08]
[1761654825519,2.43587557,4105.3,4105.2,1e-08]
[1761654826911,6.80783111,4105.3,4105.2,1e-08]
[1761654827320,2.43587557,4105.3,4105.2,1e-08]
[1761654829616,6.80783111,4105.3,4105.2,1e-08]
[1761654829837,6.70883111,4105.3,4105.2,1e-08]
[1761654830022,2.43587557,4105.3,4105.2,1e-08]
[1761654832642,2.43587557,4105.3,4105.2,0.22620001]
[1761654832842,2.43587557,4105.3,4105.2,1e-08]
[1761654833041,2.43587557,4105.3,4105.2,0.44070001]
[1761654834843,2.55747557,4105.3,4105.2,0.44070001]
[1761654836742,2.55747557,4105.3,4105.2,1e-08]
[1761654838286,2.65867557,4105.3,4105.2,1e-08]
[1761654838787,2.55747557,4105.3,4105.2,1e-08]
[1761654839287,2.55667557,4105.3,4105.2,1e-08]
[1761654839586,2.65787557,4105.3,4105.2,1e-08]
[1761654839785,7.78791033,4105.3,4105.2,1e-08]
[1761654840353,9.34311033,4105.3,4105.2,1e-08]
[1761654841085,9.34411033,4105.3,4105.2,1e-08]
[1761654842172,9.44161577,4105.3,4105.2,1e-08]
[1761654842484,9.34041577,4105.3,4105.2,1e-08]
[1761654842683,9.24291033,4105.3,4105.2,1e-08]
[1761654843505,9.12131033,4105.3,4105.2,1e-08]
[1761654843857,2.43599425,4105.1,4105.0,0.40270001]
[1761654844066,1.6768,4105.2,4104.8,0.002]
[1761654844355,2.43611293,4104.9,4104.8,0.002]
[1761654845985,9.12134769,4104.9,4104.8,0.002]
[1761654847084,9.63054769,4104.9,4104.8,0.002]
[1761654847690,9.35734769,4104.9,4104.8,0.002]
[1761654848859,9.12134769,4104.9,4104.8,0.002]
[1761654849687,3.99131293,4104.9,4104.8,0.4371]
[1761654849894,3.99131293,4104.9,4104.8,0.002]
[1761654856636,4.11101293,4104.9,4104.8,0.002]
[1761654856801,4.38081293,4104.9,4104.8,0.002]
[1761654857315,4.38081293,4104.9,4104.7,1e-08]
[1761654857316,4.26117228,4104.8,4104.7,1e-08]
[1761654857623,3.111501,4104.8,4104.1,0.01]
[1761654857922,9.12176319,4104.2,4104.1,1e-08]
[1761654858821,9.39156319,4104.2,4104.1,1e-08]
[1761654859623,2.4368253,4103.7,4103.6,0.002]
[1761654859922,7.56686006,4103.7,4103.6,0.002]
[1761654860118,9.12206006,4103.7,4103.6,0.002]
[1761654862223,9.28406006,4103.7,4103.6,0.002]
[1761654863620,9.28326006,4103.7,4103.6,0.002]
[1761654868556,9.21880806,4103.7,4103.6,0.002]
[1761654871761,9.38150806,4103.7,4103.6,0.002]
[1761654872754,9.21880806,4103.7,4103.6,0.002]
[1761654873460,9.38150806,4103.7,4103.6,0.002]
[1761654876142,4.51918868,4103.6,4103.5,1e-08]
[1761654876347,4.68188868,4103.6,4103.5,1e-08]
[1761654876549,2.43688468,4103.6,4103.5,1e-08]
[1761654876874,2.43688468,4103.6,4103.5,0.46020001]
[1761654877166,9.12211944,4103.6,4103.5,1e-08]
[1761654877944,9.52151944,4103.6,4103.5,1e-08]
[1761654880157,9.35151944,4103.6,4103.5,1e-08]
[1761654882440,9.52151944,4103.6,4103.5,1e-08]
[1761654884283,9.35151944,4103.6,4103.5,1e-08]
[1761654884780,9.35151944,4103.6,4103.1,1e-08]
[1761654884781,1.960704,4103.5,4103.1,1e-08]
[1761654885081,2.43747867,4102.6,4102.5,1e-08]
[1761654885376,9.12271343,4102.6,4102.5,1e-08]
[1761654886377,9.58291343,4102.6,4102.5,1e-08]
[1761654887342,9.58291343,4102.6,4102.5,0.46020001]
[1761654888156,9.58211343,4102.6,4102.5,0.46020001]
[1761654889976,9.58211343,4102.6,4102.5,1e-08]
[1761654890348,9.75181343,4102.6,4102.5,1e-08]
[1761654891455,9.58211343,4102.6,4102.5,1e-08]
[1761654893362,9.58211343,4102.6,4102.5,0.46020001]
[1761654894061,9.58211343,4102.6,4102.5,1e-08]
[1761654894888,9.58311343,4102.6,4102.5,1e-08]
[1761654900574,9.75281343,4102.6,4102.5,1e-08]
[1761654901102,9.58311343,4102.6,4102.5,1e-08]
[1761654901303,9.58311343,4102.6,4102.5,0.46020001]
[1761654901807,8.73330774,4102.6,4102.5,1e-08]
[1761654904404,8.90300774,4102.6,4102.5,1e-08]
[1761654904707,11.70281174,4102.6,4102.5,1e-08]
[1761654905108,9.13881174,4102.6,4102.5,1e-08]
[1761654906739,9.30851174,4102.6,4102.5,1e-08]
[1761654907121,6.24093307,4102.2,4102.1,1e-08]
[1761654907322,8.67864941,4102.2,4102.1,1e-08]
[1761654907529,11.24264941,4102.2,4102.1,1e-08]
[1761654907846,11.34023692,4102.2,4102.1,1e-08]
[1761654909123,8.37073292,4102.2,4102.1,1e-08]
[1761654909303,8.37073292,4102.2,4102.1,0.69270001]
[1761654911803,4.09050385,4102.2,4102.1,0.69270001]
[1761654912005,3.99291634,4102.2,4102.1,0.69270001]
[1761654912731,3.99211634,4102.2,4102.1,0.69270001]
[1761654913160,3.99211634,4102.2,4102.1,0.69470001]
[1761654921643,8.27234541,4102.2,4102.1,0.69470001]
[1761654924581,8.27234541,4102.2,4102.1,0.00200001]
[1761654926294,8.27234541,4102.2,4102.1,0.45730001]
[1761654927484,8.27234541,4102.2,4102.1,0.00200001]
[1761654927680,3.99297577,4102.1,4102.0,1e-08]
[1761654927879,4.27607577,4102.1,4102.0,1e-08]
[1761654928581,4.37365661,4102.1,4102.0,1e-08]
[1761654928782,11.62338968,4102.1,4102.0,1e-08]
[1761654929646,7.34316061,4102.1,4102.0,1e-08]
[1761654929854,11.62338968,4102.1,4102.0,1e-08]
[1761654930079,7.34316061,4102.1,4102.0,1e-08]
[1761654930277,4.09055661,4102.1,4102.0,1e-08]
[1761654930584,2.43777577,4102.1,4102.0,0.45530001]
[1761654937117,2.43697577,4102.1,4102.0,0.45530001]
[1761654937719,1.5552,4102.2,4102.0,0.45530001]
[1761654938017,0.001,4102.6,4102.1,0.3554]
[1761654938331,0.001,4102.6,4102.5,2.43753808]
[1761654938519,0.001,4102.6,4102.5,2.88403808]
[1761654938837,0.001,4102.6,4102.5,3.03001346]
[1761654939014,0.001,4102.6,4102.5,3.00563808]
[1761654940097,0.001,4102.6,4102.5,3.03001346]
[1761654940310,0.001,4102.6,4102.5,4.06570874]
[1761654941911,0.001,4102.6,4102.5,4.04133336]
[1761654942491,0.001,4102.6,4102.5,4.06570874]
[1761654943022,0.001,4102.6,4102.5,4.47121274]
[1761654944030,0.001,4102.6,4102.5,4.44683736]
[1761654947327,0.001,4102.6,4102.5,8.72706643]
[1761654948191,0.001,4102.6,4102.5,8.82458067]
[1761654949237,0.001,4102.6,4102.5,8.41907667]
[1761654949404,0.001,4102.6,4102.5,1.60379528]
[1761654949733,0.001,4102.6,4102.5,4.04133336]
[1761654951322,0.001,4102.6,4102.5,1.60379528]
[1761654951499,0.001,4102.6,4102.5,0.5681]
[1761654952236,0.001,4102.6,4102.5,3.00563808]
[1761654952446,0.001,4102.6,4102.5,0.5681]
[1761654954241,0.001,4102.6,4102.5,4.3223]
[1761654954946,0.001,4102.6,4102.5,6.75983808]
[1761654955133,0.001,4102.6,4102.5,7.73073728]
[1761654956335,0.001,4102.6,4102.5,5.2931992]
[1761654956849,0.001,4102.6,4102.5,7.73073728]
[1761654959236,0.001,4102.6,4102.5,12.01096635]
[1761654961750,0.0002,4102.6,4102.5,12.01096635]
[1761654963875,0.0002,4102.6,4102.5,7.73073728]
[1761654964061,0.0002,4102.6,4102.5,5.2931992]
[1761654964382,0.0002,4102.6,4102.5,7.73073728]
[1761654967683,0.0002,4102.6,4102.5,8.13624128]
[1761654968178,0.0002,4102.6,4102.5,8.23375647]
[1761654968768,0.0002,4102.6,4102.5,7.73073728]
[1761654970294,0.0002,4102.6,4102.5,7.73773728]
[1761654970895,0.0002,4102.6,4102.5,7.28423728]
[1761654971086,0.0002,4102.6,4102.5,7.73773728]
[1761654971857,0.0002,4102.6,4102.5,3.98353728]
[1761654972570,0.0002,4102.6,4102.5,9.84414119]
[1761654972764,0.0002,4102.6,4102.5,13.57396581]
[1761654973468,0.0002,4102.6,4102.5,11.37496581]
[1761654973669,0.0002,4102.6,4102.5,11.68624408]
[1761654974999,0.0002,4102.6,4102.5,11.37496581]
[1761654975675,0.0002,4102.6,4102.5,11.07581663]
[1761654976673,0.0002,4102.6,4102.5,11.37496581]
[1761654978877,0.0002,4102.6,4102.5,15.12916581]
[1761654981011,0.0002,4102.6,4102.5,15.13116581]
[1761654982828,0.0002,4102.6,4102.5,15.44244408]
[1761654985714,0.001,4103.5,4103.3,2.84256685]
[1761654986026,0.001,4103.5,4103.4,13.07073949]
[1761654986231,0.0002,4103.5,4103.4,13.07073949]
[1761654987730,0.0002,4103.5,4103.4,14.62593949]
[1761654989895,0.0002,4103.5,4103.4,14.92508867]
[1761654991692,0.001,4104.3,4103.9,4.39741054]
[1761654991892,0.001,4104.3,4104.2,2.84203243]
[1761654992102,0.001,4104.3,4104.2,6.58383243]
[1761654995605,0.001,4104.3,4104.2,7.04773243]
[1761654995911,0.001,4104.3,4104.2,6.70543243]
[1761655008572,0.001,4104.3,4104.2,7.16933243]
[1761655008882,0.001,4104.3,4104.2,8.74710977]
[1761655010652,0.0002,4104.3,4104.2,8.74710977]
[1761655013854,0.0002,4104.3,4104.2,9.04625895]
[1761655014176,0.0002,4104.3,4104.2,10.60145895]
[1761655014494,0.001,4104.7,4104.2,10.60145895]
[1761655014495,0.001,4104.7,4104.6,2.84179499]
[1761655014668,0.001,4104.7,4104.6,8.87534637]
[1761655014850,0.001,4104.7,4104.6,9.46084637]
[1761655015249,0.001,4104.7,4104.6,17.42604637]
[1761655019486,0.001,4104.7,4104.6,16.96214637]
[1761655022402,0.001,4104.7,4104.6,17.72519555]
[1761655022872,0.1061,4106.2,4105.4,2.84132024]
[1761655023068,0.1061,4106.2,4105.4,12.50224577]
[1761655023266,0.001,4105.9,4105.4,12.47788761]
[1761655023676,0.001,4105.9,4105.4,11.9146159]
[1761655023890,0.001,4105.9,4105.4,12.3785159]
[1761655024286,0.001,4105.9,4105.4,13.9337159]
[1761655026904,0.001,4105.9,4105.4,8.90151226]
[1761655026905,0.3147,4105.7,4105.4,8.90151226]
[1761655029582,0.2157,4105.7,4105.4,8.90151226]
[1761655030103,0.001,4105.9,4105.4,8.90151226]
[1761655030515,0.001,4105.9,4105.4,5.17491226]
[1761655031494,0.001,4105.9,4105.4,5.92456144]
[1761655032013,0.001,4105.9,4105.4,9.20066144]
[1761655032214,0.2132,4105.9,4105.4,9.20066144]
[1761655032414,0.2132,4105.9,4105.4,8.90151226]
[1761655032813,0.001,4105.9,4105.4,9.35201226]
[1761655033413,0.001,4105.9,4105.4,8.90151226]
[1761655033719,0.001,4105.9,4105.4,13.17066672]
[1761655034302,0.2111,4105.9,4105.4,13.17066672]
[1761655034695,0.1155,4105.8,4105.4,13.17066672]
[1761655035140,0.0002,4105.5,4105.4,13.17066672]
[1761655038796,0.1047,4105.5,4105.4,13.17066672]
[1761655039730,0.0002,4105.5,4105.4,13.17066672]
[1761655040423,0.1047,4105.5,4105.4,8.90151226]
[1761655041092,0.0002,4105.5,4105.4,13.17066672]
[1761655042327,0.0002,4105.5,4105.4,9.65116144]
[1761655043327,0.0002,4105.5,4105.4,9.20066144]
[1761655043893,0.0002,4105.5,4105.4,8.90151226]
[1761655044298,0.0002,4105.5,4105.4,9.65116144]
[1761655045767,0.0002,4105.5,4105.4,9.20066144]
[1761655046052,0.0002,4105.5,4105.4,8.90151226]
[1761655048139,0.0002,4105.5,4105.4,9.35201226]
[1761655048734,0.0002,4105.5,4105.4,8.90151226]
[1761655050154,0.0002,4105.5,4105.4,9.65116144]
[1761655050916,0.011,4105.8,4105.6,2.84120158]
[1761655051120,0.011,4105.8,4105.7,9.02486939]
[1761655051328,0.011,4105.8,4105.7,9.12211301]
[1761655055172,0.011,4105.8,4105.7,12.84851301]
[1761655056357,0.011,4105.8,4105.7,13.29211301]
[1761655059459,0.011,4105.8,4105.7,12.84851301]
[1761655059660,0.0102,4105.8,4105.7,12.84851301]
[1761655060571,0.0102,4105.8,4105.7,8.57935855]
[1761655060878,0.0102,4105.8,4105.7,12.84851301]
[1761655062568,0.0102,4105.8,4105.7,13.29211301]
[1761655063072,0.0102,4105.8,4105.7,12.84851301]
[1761655063655,0.0102,4105.8,4105.7,13.29211301]
[1761655066877,0.0102,4105.8,4105.7,13.59126219]
[1761655067688,0.001,4105.9,4105.8,3.20283211]
[1761655067994,0.001,4105.9,4105.8,5.920732]
[1761655068192,0.001,4105.9,4105.8,7.00797622]
[1761655068592,0.001,4105.9,4105.8,10.73437622]
[1761655068804,0.001,4105.9,4105.8,11.17797622]
[1761655068962,0.001,4105.9,4105.8,17.58797622]
[1761655074502,0.001,4106.4,4106.3,6.56318637]
[1761655074799,0.001,4106.4,4106.3,11.73219363]
[1761655074983,0.001,4106.4,4106.3,11.85379363]
[1761655075383,0.001,4106.4,4106.3,12.59654281]
[1761655075988,0.001,4106.4,4106.3,12.15294281]
[1761655076389,0.001,4106.4,4106.3,11.85379363]
[1761655077395,0.001,4106.4,4106.3,12.15294281]
[1761655081817,0.001,4106.9,4106.8,3.7104]
[1761655082113,0.001,4106.9,4106.8,5.2118289]
[1761655082315,0.001,4106.9,4106.8,5.63107905]
[1761655083520,0.001,4106.9,4106.8,5.33192987]
[1761655083886,0.001,4106.9,4106.8,10.4514213]
[1761655084201,0.0002,4106.9,4106.8,10.4514213]
[1761655084886,0.0002,4106.9,4106.8,10.75057048]
[1761655085616,0.2184,4106.9,4106.8,4.48282587]
[1761655085821,0.2184,4106.9,4106.8,2.55658587]
[1761655086017,0.1192,4106.9,4106.8,2.96208987]
[1761655086396,0.2184,4106.9,4106.8,2.96208987]
[1761655086714,0.0002,4106.9,4106.8,2.96208987]
[1761655086924,0.2184,4106.9,4106.8,2.96208987]
[1761655090029,0.2184,4106.9,4106.8,8.0815813]
[1761655090231,0.0002,4106.9,4106.8,9.50428978]
[1761655090804,0.2172,4106.9,4106.8,2.96208987]
[1761655091843,0.2184,4106.9,4106.8,0.1216]
[1761655096901,0.94911906,4106.9,4106.8,0.1216]
[1761655100037,0.94911906,4106.9,4106.8,2.55658587]
[1761655100240,0.94911906,4106.9,4106.8,0.1216]
[1761655102413,0.2184,4106.9,4106.8,0.1216]
[1761655102611,0.2184,4106.9,4106.8,2.55658587]
[1761655103216,0.1194,4106.9,4106.8,2.55658587]
[1761655103416,0.0002,4106.9,4106.8,3.61313831]
[1761655103622,0.0002,4106.9,4106.8,4.04238846]
[1761655104209,0.0002,4106.9,4106.8,7.29918846]
[1761655104546,0.0002,4106.9,4106.8,7.30118846]
[1761655106531,0.0002,4106.9,4106.8,7.75478846]
[1761655107239,0.0002,4106.9,4106.8,7.30118846]
[1761655108475,0.0004,4107.1,4107.0,2.43486729]
[1761655109018,0.0004,4107.1,4107.0,3.36792247]
[1761655109615,0.0004,4107.1,4107.0,7.07832247]
[1761655111750,0.0996,4107.1,4107.0,7.07832247]
[1761655111918,0.0996,4107.1,4107.0,6.14526729]
[1761655113248,0.0004,4107.1,4107.0,6.14526729]
[1761655114857,0.0004,4107.1,4107.0,6.59316729]
[1761655115237,0.0004,4107.1,4107.0,6.14526729]
[1761655119882,0.0004,4107.1,4107.0,6.55077129]
[1761655120037,0.0004,4107.1,4107.0,8.13866642]
[1761655120483,0.0004,4107.1,4107.0,3.98036642]
[1761655123192,0.0004,4107.1,4107.0,3.98236642]
[1761655124497,0.0004,4107.1,4107.0,8.4398156]
[1761655126380,0.0004,4107.1,4107.0,7.69276642]
[1761655126951,0.0004,4107.1,4107.0,8.14066642]
[1761655133197,0.0506,4107.4,4107.3,2.84019345]
[1761655133511,0.0506,4107.4,4107.3,3.8977185]
[1761655133717,0.0506,4107.4,4107.3,4.0193185]
[1761655136129,0.1498,4107.4,4107.3,3.6138145]
[1761655136317,0.0506,4107.4,4107.3,3.6138145]
[1761655138886,0.0506,4107.4,4107.3,7.3242145]
[1761655139103,0.0506,4107.4,4107.3,7.7721145]
[1761655139499,0.0506,4107.4,4107.3,7.3242145]
[1761655142856,0.1498,4107.4,4107.3,3.832]
[1761655154582,0.1498,4107.4,4107.3,4.632]
[1761655157528,0.149,4107.4,4107.3,4.632]
[1761655160326,0.149,4107.4,4107.3,4.634]
[1761655163523,0.0498,4107.4,4107.3,6.97143634]
[1761655163833,0.0498,4107.4,4107.3,12.4605207]
[1761655164044,0.0498,4107.4,4107.3,12.9063207]
[1761655165544,0.0498,4107.4,4107.3,13.3118247]
[1761655165749,0.0498,4107.4,4107.3,8.92250869]
[1761655170357,0.0498,4107.4,4107.3,9.22165787]
[1761655173565,0.0498,4107.4,4107.3,15.04457388]
[1761655173724,0.0498,4107.4,4107.3,15.35585215]
[1761655173924,0.0498,4107.4,4107.3,11.18552051]
[1761655174257,0.0498,4107.4,4107.3,15.45323652]
[1761655175436,0.0498,4107.4,4107.3,11.18552051]
[1761655175749,0.0498,4107.4,4107.3,10.99584224]
[1761655177394,0.01,4107.8,4107.7,2.83995636]
[1761655177567,0.01,4107.8,4107.7,8.62699808]
[1761655178169,0.01,4107.8,4107.7,4.56528207]
[1761655179352,0.01,4107.8,4107.7,8.27568207]
[1761655181286,0.01,4107.8,4107.7,8.57483125]
[1761655181867,0.0092,4107.8,4107.7,10.44130952]
[1761655182073,0.0092,4107.8,4107.7,6.73090952]
[1761655184878,0.0092,4107.8,4107.7,6.41963125]
[1761655185487,1e-08,4107.8,4107.7,6.41963125]
[1761655185691,1e-08,4107.8,4107.7,6.73090952]
[1761655186290,0.001,4108.3,4108.2,2.83966007]
[1761655186494,0.001,4108.3,4108.2,9.24569127]
[1761655186693,0.001,4108.3,4108.2,9.68739127]
[1761655186910,0.001,4108.3,4108.2,9.90639127]
[1761655187519,0.001,4108.3,4108.2,14.17410728]
[1761655187676,0.2178,4109.7,4108.3,4.83650082]
[1761655187988,0.2178,4109.7,4109.6,0.405504]
[1761655188189,0.2178,4109.7,4109.6,2.83883084]
[1761655188413,0.3192,4109.7,4109.6,2.83883084]
[1761655188973,0.2178,4109.7,4109.6,2.83883084]
[1761655189177,0.01,4109.8,4109.7,2.43326763]
[1761655189378,0.01,4109.8,4109.7,7.10648764]
[1761655189611,0.01,4109.8,4109.7,8.10463909]
[1761655190120,0.01,4109.8,4109.7,13.11320428]
[1761655190316,0.01,4109.8,4109.7,14.97968255]
[1761655190823,0.01,4109.8,4109.7,15.07701005]
[1761655191390,0.01,4109.8,4109.7,10.80929404]
[1761655192402,0.01,4109.8,4109.7,10.49801577]
[1761655192594,0.01,4109.8,4109.7,5.48945058]
[1761655192794,0.01,4109.8,4109.7,9.65983909]
[1761655196223,0.01,4109.8,4109.7,9.78143909]
[1761655196591,0.011,4109.8,4109.7,10.22313909]
[1761655198021,0.011,4109.8,4109.7,10.52228827]
[1761655198989,0.05,4110.4,4110.3,2.83841643]
[1761655199188,0.05,4110.4,4110.3,7.22773244]
[1761655199616,0.05,4110.4,4110.3,2.96001643]
[1761655199820,0.05,4110.4,4110.3,7.79027291]
[1761655200187,0.05,4110.4,4110.3,11.93137291]
[1761655200505,0.05,4110.4,4110.3,12.54180036]
[1761655200692,0.162,4111.7,4110.7,2.8381797]
[1761655201021,0.162,4111.7,4110.7,9.27152316]
[1761655201224,0.162,4111.7,4110.7,11.08982062]
[1761655201225,0.0996,4111.6,4110.7,11.08982062]
[1761655201392,0.0996,4111.6,4110.7,11.21142062]
[1761655202593,0.0996,4111.6,4110.7,10.90014235]
[1761655202895,0.0996,4112.0,4110.7,10.90014235]
[1761655203094,4.37821601,4110.8,4109.0,4.50011601]
[1761655203397,0.1105,4110.8,4109.9,4.26771601]
[1761655203728,0.1105,4110.8,4110.0,2.43303462]
[1761655203913,0.1105,4110.8,4109.9,4.26771601]
[1761655204090,0.1105,4110.8,4110.1,0.405504]
[1761655204509,0.1105,4110.8,4110.0,0.405504]
[1761655205392,0.1105,4110.8,4110.2,0.405504]
[1761655205593,0.01,4110.8,4110.2,7.10617408]
[1761655205793,0.1116,4110.8,4110.4,2.43280745]
[1761655206273,0.1116,4110.8,4110.5,4.67322001]
[1761655206529,0.1116,4110.8,4110.7,2.8381797]
[1761655206530,0.0092,4110.8,4110.7,2.8381797]
[1761655208344,0.0092,4110.8,4110.7,3.36527656]
[1761655208742,0.0092,4110.8,4110.7,8.92273159]
[1761655213059,0.0092,4110.8,4110.7,9.04433159]
[1761655213473,1e-08,4110.8,4110.7,10.59953159]
[1761655214237,0.01,4111.8,4111.7,2.83758805]
[1761655214446,0.01,4111.8,4111.7,3.36456287]
[1761655214653,0.01,4111.8,4111.7,3.48616287]
[1761655216564,0.1114,4111.8,4111.7,1.327104]
[1761655216756,0.1114,4111.8,4111.7,3.75918805]
[1761655219973,0.1114,4111.8,4111.7,3.35368405]
[1761655220181,5.22275503,4111.8,4110.9,0.1216]
[1761655220475,0.1419,4111.0,4110.9,0.1216]
[1761655220875,0.2451,4111.0,4110.9,0.1216]
[1761655221075,2.67759817,4111.0,4110.9,0.1216]
[1761655222653,0.2451,4111.0,4110.9,0.1216]
[1761655222841,2.67759817,4111.0,4110.9,0.1216]
[1761655223440,0.2451,4111.0,4110.9,0.1216]
[1761655223645,2.67759817,4111.0,4110.9,0.1216]
[1761655223845,0.2451,4111.0,4110.9,0.1216]
[1761655228446,2.67759817,4111.0,4110.9,0.1216]
[1761655230978,2.67679817,4111.0,4110.9,0.1216]
[1761655232050,0.2443,4111.0,4110.9,0.1216]
[1761655232485,2.67679817,4111.0,4110.9,0.1216]
[1761655233922,0.1411,4111.0,4110.9,0.1216]
[1761655234284,0.2443,4111.0,4110.9,0.1216]
[1761655236524,2.4324496,4111.1,4110.9,0.1216]
[1761655236700,1.5552,4111.3,4110.8,0.002]
[1761655236701,0.2429,4111.3,4110.8,0.002]
[1761655237020,0.2429,4111.3,4111.1,0.9216]
[1761655238435,0.099,4111.3,4111.1,0.9216]
[1761655238621,0.099,4111.3,4111.2,3.6994]
[1761655238930,0.1453,4111.4,4111.2,3.6994]
[1761655239418,0.2443,4111.4,4111.2,3.6994]
[1761655240336,2.4321601,4111.6,4111.2,3.6994]
[1761655240494,2.5311601,4111.6,4111.5,0.1216]
[1761655240696,2.4321601,4111.6,4111.5,0.1216]
[1761655241194,2.5311601,4111.6,4111.5,0.1216]
[1761655241514,2.4811601,4111.6,4111.5,0.1216]
[1761655241715,0.099,4111.6,4111.5,0.1216]
[1761655241911,2.5311432,4111.6,4111.5,0.1216]
[1761655242318,0.099,4111.6,4111.5,0.1216]
[1761655242627,0.01,4111.8,4111.5,0.1216]
[1761655242828,1.6642,4111.8,4111.4,3.6994]
[1761655243033,1.6642,4111.8,4111.7,0.1216]
[1761655243204,3.9972249,4111.8,4111.7,0.1216]
[1761655243863,2.5410249,4111.8,4111.7,0.1216]
[1761655248229,2.4420249,4111.8,4111.7,0.1216]
[1761655248816,2.5410249,4111.8,4111.7,0.1216]
[1761655250049,0.109,4111.8,4111.7,0.1216]
[1761655250445,2.5410249,4111.8,4111.7,0.1216]
[1761655253457,2.43230151,4111.4,4111.2,3.6994]
[1761655253752,2.43232067,4111.3,4111.2,3.6994]
[1761655254249,2.53132067,4111.3,4111.2,3.821]
[1761655255352,2.53052067,4111.3,4111.2,3.821]
[1761655255957,2.53052067,4111.3,4111.2,3.6994]
[1761655259055,2.43237984,4111.2,4111.1,0.8]
[1761655259355,2.53137984,4111.2,4111.1,0.8]
[1761655261244,4.08657984,4111.2,4111.1,0.8]
[1761655261728,3.98757984,4111.2,4111.1,0.8]
[1761655264875,2.43237984,4111.2,4111.1,0.8]
[1761655265559,3.98746886,4111.4,4111.1,0.8]
[1761655265745,4.08646886,4111.4,4111.1,0.8]
[1761655265951,2.43237984,4111.2,4111.1,0.8]
[1761655266409,2.43237984,4111.2,4111.1,0.9216]
[1761655266981,0.011,4111.8,4111.1,0.9216]
[1761655267149,0.099,4111.6,4111.1,0.9216]
[1761655267761,2.43237984,4111.2,4111.1,0.9216]
[1761655268076,2.53137984,4111.2,4111.1,0.9216]
[1761655268844,2.43237984,4111.2,4111.1,0.9216]
[1761655269279,2.53137984,4111.2,4111.1,0.9216]
[1761655270483,6.79167649,4111.2,4111.1,0.9216]
[1761655270694,6.79167649,4111.2,4111.1,0.8]
[1761655270695,8.34687649,4111.2,4111.1,0.8]
[1761655272377,4.08657984,4111.2,4111.1,0.8]
[1761655272691,4.08657984,4111.2,4111.1,0.802]
[1761655280015,4.08577984,4111.2,4111.1,0.802]
[1761655280811,8.34607649,4111.2,4111.1,0.802]
[1761655281106,8.46767649,4111.2,4111.1,0.802]
[1761655281711,4.10837984,4111.2,4111.1,0.802]
[1761655282015,8.46767649,4111.2,4111.1,0.802]
[1761655287925,8.36867649,4111.2,4111.1,0.802]
[1761655288093,8.24707649,4111.2,4111.1,0.802]
[1761655289205,3.98677984,4111.2,4111.1,0.802]
[1761655290624,3.98777984,4111.2,4111.1,0.802]
[1761655290910,4.08677984,4111.2,4111.1,0.802]
[1761655292027,1.5552,4111.1,4110.8,0.002]
[1761655292211,8.24805399,4110.9,4110.8,0.002]
[1761655292588,8.48895399,4110.9,4110.8,0.002]
[1761655293502,9.70495399,4110.9,4110.8,0.002]
[1761655297640,8.48895399,4110.9,4110.8,0.002]